bitfinex-derivatives/quotes_ETHF0:USTF0_20210705
["timestamp","ask_amount","ask_price","bid_price","bid_amount"]
[1625487205944,1.9028,2205.8,2204.3,4.51067]
[1625487206043,21.71174108,2205.9,2204.3,4.51067]
[1625487206144,19.9213,2205.9,2204.3,4.51067]
[1625487206345,24.9213,2205.9,2204.3,4.51067]
[1625487206444,19.9213,2205.9,2204.3,4.51067]
[1625487207096,20.8322,2205.9,2204.3,4.51067]
[1625487207448,2.20527,2205.0,2204.8,2.20527]
[1625487209465,2.20527,2205.0,2204.9,2.20527]
[1625487212978,2.20527,2205.0,2204.1,55.8136]
[1625487213080,2.20527,2205.0,2204.1,54.8136]
[1625487213479,2.20527,2205.0,2204.7,2.20527]
[1625487213782,2.20527,2205.2,2204.7,2.20527]
[1625487213880,15.1623,2205.9,2204.7,5.28107]
[1625487215480,2.20527,2205.8,2205.7,2.20527]
[1625487217488,4.41054,2205.8,2205.7,2.20527]
[1625487217940,4.41054,2205.8,2204.7,1.0]
[1625487218040,4.41054,2205.8,2204.2,14.8354]
[1625487218241,9.41054,2205.8,2204.2,14.8354]
[1625487218543,4.41054,2205.8,2204.2,14.8354]
[1625487218694,39.0561,2205.3,2204.2,14.8354]
[1625487218797,42.4013,2205.3,2204.2,14.8354]
[1625487219624,2.20527,2204.9,2204.8,2.20527]
[1625487223582,39.0561,2205.3,2204.8,2.20527]
[1625487225389,2.20527,2205.7,2204.8,2.20527]
[1625487225588,2.20527,2205.7,2205.4,2.20527]
[1625487227688,4.41054,2205.7,2205.4,4.41054]
[1625487231004,4.41054,2205.7,2205.4,7.75514]
[1625487236009,4.41054,2205.7,2205.4,5.54987]
[1625487241478,4.41054,2205.7,2205.4,2.20527]
[1625487246049,4.41054,2205.7,2205.2,2.20527]
[1625487246248,7.82104,2205.7,2205.2,2.20527]
[1625487247755,2.20527,2205.3,2205.2,4.41054]
[1625487252768,4.53327,2205.7,2205.2,4.41054]
[1625487253766,4.53327,2205.7,2205.6,2.20527]
[1625487253866,2.20527,2205.7,2205.6,2.20527]
[1625487255673,2.20527,2205.7,2205.6,5.51457]
[1625487256675,5.6578,2206.7,2205.6,5.51457]
[1625487256775,5.6728,2206.7,2205.6,5.51457]
[1625487257777,2.20527,2206.2,2206.1,2.20527]
[1625487259787,4.41054,2206.2,2206.1,2.20527]
[1625487263106,0.9119,2207.0,2206.1,2.20527]
[1625487263857,2.20527,2206.7,2206.5,2.20527]
[1625487264994,2.20527,2206.7,2206.1,2.20527]
[1625487265796,2.20527,2206.2,2206.1,4.41054]
[1625487274898,2.20527,2206.7,2206.1,4.41054]
[1625487274999,2.20527,2206.7,2206.1,7.89944]
[1625487275907,4.41054,2206.7,2206.6,2.20527]
[1625487278211,4.41054,2206.7,2206.6,46.37707]
[1625487279442,4.41054,2206.7,2206.6,44.1718]
[1625487281196,4.41054,2206.7,2206.4,2.20527]
[1625487283914,4.41054,2206.7,2206.5,39.3211]
[1625487284966,4.41054,2206.7,2206.4,2.20527]
[1625487289430,4.41054,2206.7,2206.1,2.20527]
[1625487289529,4.41054,2206.7,2205.3,1.0]
[1625487289629,9.41054,2206.7,2205.2,16.37025089]
[1625487289930,2.20527,2205.3,2205.2,1.86605089]
[1625487290030,5.48237,2205.3,2205.2,1.86605089]
[1625487290254,5.48237,2205.3,2204.9,2.20527]
[1625487290542,45.2073,2205.2,2204.9,2.20527]
[1625487291648,5.48237,2205.3,2204.9,2.20527]
[1625487291948,2.20527,2205.0,2204.9,2.20527]
[1625487293464,2.20527,2205.0,2204.3,1.86870518]
[1625487293565,2.20527,2205.0,2204.2,45.59605648]
[1625487293868,2.20527,2205.0,2204.3,1.86927856]
[1625487293966,4.41054,2205.0,2204.9,2.20527]
[1625487295220,4.41054,2205.0,2204.9,4.62667]
[1625487295419,2.20527,2205.0,2204.9,4.62667]
[1625487301749,1.0,2205.9,2204.9,4.62667]
[1625487301845,15.1161,2206.0,2204.9,4.62667]
[1625487301942,15.1161,2206.0,2205.7,2.20527]
[1625487302043,2.20527,2205.8,2205.7,5.32307]
[1625487302759,1.8028737,2207.1,2205.7,5.32307]
[1625487303058,16.4293737,2207.1,2205.7,5.32307]
[1625487303257,14.6265,2207.1,2205.7,5.32307]
[1625487303358,14.6265,2207.1,2206.2,56.4153]
[1625487303460,14.6265,2207.1,2206.2,59.8586]
[1625487303760,1.80422583,2207.4,2206.2,59.8586]
[1625487303962,3.35070512,2207.7,2206.8,2.20527]
[1625487303963,2.20527,2206.9,2206.8,2.20527]
[1625487308776,1.0,2207.8,2206.8,2.20527]
[1625487308876,1.80505276,2208.2,2206.8,5.68337]
[1625487309332,17.57094681,2208.3,2206.8,5.68337]
[1625487309333,16.79674773,2208.3,2206.8,5.68337]
[1625487310082,2.20527,2208.0,2207.9,2.20527]
[1625487312750,1.0,2208.9,2207.9,2.20527]
[1625487312851,7.05815128,2209.3,2207.9,5.66587]
[1625487313151,5.259,2209.3,2207.9,5.66587]
[1625487313952,0.5,2209.3,2207.9,5.66587]
[1625487314154,0.5,2209.3,2209.2,2.20527]
[1625487314254,0.5,2209.3,2209.2,5.74587]
[1625487315205,0.8988,2209.8,2209.2,5.74587]
[1625487315304,0.05,2210.0,2209.2,5.74587]
[1625487316209,0.05,2210.0,2209.9,7.10424]
[1625487318673,1.0,2211.2,2209.9,7.10424]
[1625487318769,0.5,2211.6,2209.9,4.89897]
[1625487318891,0.5,2211.6,2209.9,2.20527]
[1625487319261,39.2992,2210.7,2209.9,2.20527]
[1625487319361,42.2233,2210.7,2209.9,2.20527]
[1625487320163,2.20527,2210.0,2209.9,2.20527]
[1625487321169,2.20527,2210.2,2209.9,2.20527]
[1625487321270,2.20527,2210.2,2209.9,4.67307]
[1625487321568,4.759,2211.0,2209.9,4.67307]
[1625487321972,5.259,2211.6,2209.9,4.67307]
[1625487322168,2.20527,2211.1,2211.0,2.20527]
[1625487322378,0.903,2211.3,2211.0,2.20527]
[1625487322379,0.903,2211.3,2211.0,4.65237]
[1625487322475,5.259,2211.6,2211.0,4.65237]
[1625487322876,0.5,2211.6,2211.0,4.65237]
[1625487323689,0.5,2211.6,2211.0,2.20527]
[1625487324189,2.70527,2211.6,2211.5,2.20527]
[1625487325307,0.5,2211.6,2211.5,2.20527]
[1625487325709,0.5,2211.6,2211.5,4.58577]
[1625487326211,0.5,2211.6,2211.5,6.79104]
[1625487331579,0.5,2211.6,2211.5,4.41054]
[1625487333639,0.0001,2211.6,2211.5,4.41054]
[1625487338970,0.0001,2211.6,2211.5,20.862271]
[1625487343022,0.0001,2211.6,2211.5,25.862271]
[1625487343925,0.0001,2211.6,2211.5,26.962271]
[1625487344023,14.9276,2213.7,2211.5,25.862271]
[1625487344325,14.9276,2213.7,2213.6,4.41054]
[1625487344627,0.5,2213.8,2213.6,4.41054]
[1625487345529,0.5,2213.8,2213.6,6.88814]
[1625487347184,1.9075,2215.1,2213.6,6.88814]
[1625487347284,14.8768,2215.2,2213.6,6.88814]
[1625487347483,0.19709494,2215.1,2213.6,6.88814]
[1625487348385,0.19709494,2215.1,2215.0,4.41054]
[1625487348634,0.19709494,2215.1,2215.0,3.33971306]
[1625487349386,0.19684084,2215.2,2215.0,3.33971306]
[1625487350288,7.0625,2216.0,2215.0,3.33971306]
[1625487350289,0.19660612,2215.9,2215.0,3.33971306]
[1625487350390,2.40187612,2215.9,2215.6,2.20527]
[1625487350489,0.19659321,2215.8,2215.6,1.67001293]
[1625487350699,0.19659321,2215.8,2215.0,1.13444306]
[1625487351846,2.20527,2215.9,2215.0,1.13444306]
[1625487352448,2.20527,2215.9,2215.8,6.78864]
[1625487353245,14.5833,2217.2,2215.8,6.78864]
[1625487353346,0.18856879,2217.1,2215.8,6.78864]
[1625487353547,0.18847138,2217.5,2215.8,6.78864]
[1625487353747,0.2729,2217.6,2215.8,6.78864]
[1625487353846,5.259,2218.2,2215.8,6.78864]
[1625487354346,5.259,2218.2,2215.9,16.438259]
[1625487354447,7.46427,2218.2,2218.1,4.41054]
[1625487354547,7.46427,2218.2,2218.1,7.87634]
[1625487354648,5.259,2218.2,2218.1,7.87634]
[1625487354963,0.68787561,2218.2,2218.1,7.87634]
[1625487355759,0.5,2218.2,2218.1,7.87634]
[1625487357568,0.68784506,2218.2,2218.1,3.4658]
[1625487357919,0.68784506,2218.2,2217.3,3.1196]
[1625487358220,0.5,2218.2,2217.3,3.1196]
[1625487358320,0.5,2218.2,2216.8,14.8014]
[1625487358421,2.20527,2218.0,2217.9,2.20527]
[1625487358522,2.20527,2218.0,2215.4,0.8897]
[1625487358627,2.20527,2218.0,2215.0,0.8907]
[1625487358828,0.18791467,2217.9,2215.0,0.8907]
[1625487358929,1.10071467,2217.9,2215.0,0.8907]
[1625487359031,0.18832177,2217.8,2215.0,0.8907]
[1625487359132,3.50312177,2217.8,2215.0,0.8907]
[1625487359234,40.6305,2217.6,2215.0,0.8907]
[1625487359336,0.18832861,2217.5,2214.2,1.0]
[1625487359782,0.18832861,2217.5,2215.3,15.6137]
[1625487360189,0.18806815,2217.7,2215.3,15.6137]
[1625487360287,0.18806815,2217.7,2215.3,18.7014]
[1625487360391,0.18806269,2217.9,2215.3,18.7014]
[1625487360493,0.18806269,2217.9,2216.9,2.20527]
[1625487360494,2.20527,2217.0,2216.9,2.20527]
[1625487360834,2.39336218,2217.0,2215.4,1.0]
[1625487360935,2.39336218,2217.0,2215.3,14.7189]
[1625487361136,0.18808863,2216.9,2215.3,14.7189]
[1625487362437,0.18808863,2216.9,2215.9,2.20527]
[1625487362438,2.20527,2216.1,2215.9,2.20527]
[1625487362941,2.20527,2216.1,2215.9,7e-05]
[1625487363295,2.20527,2216.1,2215.3,14.7189]
[1625487363391,2.20527,2216.1,2214.2,1.0]
[1625487363493,5.0,2216.0,2212.9,1.0]
[1625487363991,38.2576,2215.6,2212.9,1.0]
[1625487364092,38.2576,2215.6,2212.8,14.861]
[1625487364093,45.4817,2215.6,2212.8,14.861]
[1625487364195,45.4817,2215.6,2212.8,13.9695]
[1625487364500,2.20527,2213.8,2213.7,2.20527]
[1625487364794,2.20527,2213.8,2213.4,2.20527]
[1625487366449,2.20527,2213.5,2212.8,13.9695]
[1625487368506,2.20527,2213.5,2213.0,2.20527]
[1625487368507,2.20527,2213.1,2213.0,2.20527]
[1625487372445,0.9102,2214.6,2213.0,2.20527]
[1625487372543,5.0,2215.0,2213.0,2.20527]
[1625487372544,2.20527,2213.6,2213.0,4.64997]
[1625487374299,1.0,2215.5,2213.0,4.64997]
[1625487374401,38.2576,2215.6,2213.0,4.64997]
[1625487374500,2.20527,2214.1,2214.0,2.20527]
[1625487375701,38.2576,2215.6,2214.0,2.20527]
[1625487376508,2.20527,2215.1,2214.8,2.20527]
[1625487376657,2.20527,2215.1,2214.8,5.41767]
[1625487378120,2.20527,2215.4,2214.8,5.41767]
[1625487378320,5.0,2216.7,2214.8,5.41767]
[1625487378420,5.0,2216.3,2214.8,5.41767]
[1625487378520,2.20527,2215.5,2215.4,2.20527]
[1625487379121,55.4618,2216.4,2214.8,2.20527]
[1625487379224,55.4618,2216.4,2214.8,5.72877]
[1625487379973,5.0,2216.3,2214.8,5.72877]
[1625487380074,0.904,2216.6,2214.8,5.72877]
[1625487380174,1.0,2217.5,2214.8,5.72877]
[1625487380286,6.07288058,2221.5,2214.8,5.72877]
[1625487380392,1.0,2217.7,2214.8,5.72877]
[1625487380574,2.20527,2214.9,2214.8,5.72877]
[1625487381525,45.7428,2216.4,2214.8,5.72877]
[1625487382580,2.20527,2215.6,2215.3,2.20527]
[1625487382680,2.20527,2215.6,2215.3,5.43317]
[1625487383431,2.20527,2215.6,2215.3,3.2279]
[1625487384547,2.20527,2215.4,2215.3,3.2279]
[1625487386854,2.20527,2215.4,2214.8,4.41054]
[1625487386959,4.34377,2215.4,2214.8,4.41054]
[1625487387260,4.34377,2215.4,2214.8,2.20527]
[1625487387961,2.20527,2215.4,2214.8,2.20527]
[1625487388613,2.20527,2214.9,2214.8,2.20527]
[1625487390575,4.41054,2214.9,2214.8,2.20527]
[1625487395646,4.41054,2214.9,2214.4,2.20527]
[1625487395747,6.82624,2214.9,2214.4,2.20527]
[1625487395849,11.82624,2214.9,2213.1,1.0]
[1625487395949,11.82624,2214.9,2212.8,13.9695]
[1625487395950,52.8683,2214.5,2212.8,13.9695]
[1625487396048,53.7718,2214.5,2212.8,13.9695]
[1625487396599,2.20527,2213.9,2213.8,2.20527]
[1625487396711,5.68057,2213.9,2213.8,2.20527]
[1625487396898,4.77227,2213.9,2213.8,2.20527]
[1625487397702,4.77227,2213.9,2212.8,13.9695]
[1625487398452,5.66567,2213.9,2212.8,13.9695]
[1625487398551,10.66567,2213.9,2212.8,13.9695]
[1625487398653,2.20527,2213.4,2213.3,2.20527]
[1625487400928,53.7718,2214.5,2213.3,2.20527]
[1625487401031,53.7718,2214.5,2213.3,4.92197]
[1625487401129,5.0,2214.4,2213.3,4.92197]
[1625487401230,53.7718,2214.5,2213.3,4.92197]
[1625487401833,5.0,2214.4,2213.3,4.92197]
[1625487402535,53.7718,2214.5,2213.3,4.92197]
[1625487402637,2.20527,2213.5,2213.3,4.92197]
[1625487404293,53.7718,2214.5,2213.3,4.92197]
[1625487404694,2.20527,2214.3,2214.1,5.21247]
[1625487405196,4.759,2217.0,2214.1,5.21247]
[1625487405496,1.0,2216.5,2214.1,5.21247]
[1625487405597,1.0,2216.3,2214.1,5.21247]
[1625487406021,5.0,2216.2,2214.1,5.21247]
[1625487406648,2.20527,2214.8,2214.6,2.20527]
[1625487408259,2.20527,2214.8,2214.1,2.20527]
[1625487408657,4.41054,2214.2,2214.1,2.20527]
[1625487409107,4.41054,2214.2,2212.8,13.9695]
[1625487410615,4.41054,2214.2,2212.8,14.8742]
[1625487410728,2.20527,2214.7,2214.1,4.41054]
[1625487410921,13.6426,2215.7,2214.1,7.27034]
[1625487411472,5.0,2215.6,2214.1,7.27034]
[1625487412231,13.6426,2215.7,2214.1,7.27034]
[1625487412730,2.20527,2215.0,2214.9,5.26107]
[1625487413041,46.7428,2216.4,2214.9,5.26107]
[1625487413149,45.7428,2216.4,2214.9,5.26107]
[1625487413641,5.0,2216.3,2214.9,5.26107]
[1625487414704,2.20527,2215.0,2214.9,5.26107]
[1625487416557,2.20527,2215.0,2213.6,1.0]
[1625487416685,7.20527,2215.0,2213.0,1.0]
[1625487416758,2.20527,2213.8,2213.6,2.20527]
[1625487416858,4.69557,2213.8,2213.6,2.20527]
[1625487417662,4.69557,2213.8,2213.3,2.20527]
[1625487418714,2.20527,2213.4,2213.3,2.20527]
[1625487420834,2.20527,2213.4,2212.8,16.17477]
[1625487422419,2.20527,2213.4,2212.8,13.9695]
[1625487422719,4.69557,2213.8,2212.8,13.9695]
[1625487422720,4.41054,2212.9,2212.8,13.9695]
[1625487422820,4.41054,2212.9,2211.9,2.20527]
[1625487423700,49.4748,2212.8,2211.9,2.20527]
[1625487423884,49.4748,2212.8,2211.7,2.20527]
[1625487423885,5.0,2212.7,2211.3,1.0]
[1625487423986,5.0,2212.7,2210.8,1.0]
[1625487424085,5.0,2212.7,2210.7,14.0981]
[1625487424790,2.20527,2211.1,2211.0,2.20527]
[1625487424903,4.73097,2211.1,2211.0,2.20527]
[1625487426792,6.93624,2211.1,2211.0,2.20527]
[1625487427443,6.93624,2211.1,2210.7,14.0981]
[1625487428397,4.41054,2211.1,2210.7,14.0981]
[1625487428861,4.41054,2211.1,2211.0,2.20527]
[1625487430821,4.41054,2211.1,2210.7,14.0981]
[1625487431724,1.0,2212.1,2210.0,3.5266807]
[1625487431825,1.0,2212.6,2210.0,3.5266807]
[1625487431924,1.0,2212.6,2210.0,2.20527]
[1625487432025,1.0,2212.6,2210.1,1.0]
[1625487432225,1.0,2212.6,2210.4,1.3206135]
[1625487432325,15.1397,2212.7,2210.4,51.0644135]
[1625487432828,2.20527,2212.6,2212.4,2.20527]
[1625487432929,2.20527,2212.6,2212.4,4.66307]
[1625487433228,15.1397,2212.7,2212.4,4.66307]
[1625487433829,5.0,2214.5,2212.4,4.66307]
[1625487434029,1.0,2214.4,2212.4,4.66307]
[1625487434233,5.0,2214.5,2212.4,4.66307]
[1625487434408,5.0,2214.5,2212.4,5.66307]
[1625487434495,0.8968,2214.6,2212.4,5.66307]
[1625487434601,14.3518,2215.0,2212.4,5.66307]
[1625487434890,2.20527,2213.9,2213.8,2.20527]
[1625487436794,68.1483,2215.0,2213.8,2.20527]
[1625487436896,2.20527,2214.3,2214.2,2.20527]
[1625487437095,2.20527,2214.3,2213.8,2.20527]
[1625487437498,19.1108,2215.0,2213.8,2.20527]
[1625487437598,19.1108,2215.0,2213.8,4.39087]
[1625487437899,14.3518,2215.0,2213.8,4.39087]
[1625487438863,2.20527,2214.7,2214.4,2.20527]
[1625487439268,2.20527,2214.7,2213.8,2.20527]
[1625487439369,4.56247,2214.7,2213.8,2.20527]
[1625487440330,4.56247,2214.7,2213.2,1.0]
[1625487440429,4.56247,2214.7,2212.1,4.759]
[1625487440531,4.56247,2214.7,2212.5,1.0]
[1625487440631,9.56247,2214.7,2212.1,4.759]
[1625487440730,10.56247,2214.7,2212.1,4.759]
[1625487440831,10.56247,2214.7,2213.4,2.20527]
[1625487440932,4.81587,2213.5,2213.4,2.20527]
[1625487441384,4.81587,2213.5,2213.1,2.20527]
[1625487442187,2.6106,2213.5,2213.1,2.20527]
[1625487442798,0.8913,2214.5,2213.1,2.20527]
[1625487442887,2.20527,2213.9,2213.7,2.20527]
[1625487444242,2.20527,2213.9,2212.3,1.0]
[1625487444355,2.20527,2213.9,2212.2,15.1375]
[1625487444456,7.20527,2213.9,2212.2,15.1375]
[1625487444556,7.20527,2213.9,2212.0,45.231]
[1625487444656,7.20527,2213.9,2212.0,44.231]
[1625487444857,2.20527,2213.2,2212.8,2.20527]
[1625487444956,4.87087,2213.2,2212.8,2.20527]
[1625487445467,2.6656,2213.2,2212.8,2.20527]
[1625487446671,2.20527,2213.9,2212.8,2.20527]
[1625487446871,2.20527,2213.9,2213.6,2.20527]
[1625487447471,0.8967,2214.6,2213.6,2.20527]
[1625487447571,0.9,2215.2,2213.6,2.20527]
[1625487447774,5.0,2215.3,2213.6,2.20527]
[1625487448930,2.20527,2214.5,2214.4,2.20527]
[1625487449775,2.20527,2214.5,2213.3,1.0]
[1625487449877,2.20527,2214.5,2212.6,14.1244]
[1625487450885,2.20527,2213.9,2213.8,2.20527]
[1625487452887,4.41054,2213.9,2213.8,2.20527]
[1625487455594,1.0,2215.2,2213.8,2.20527]
[1625487455694,5.9086,2215.3,2213.8,5.31527]
[1625487455794,5.0,2215.3,2213.8,5.31527]
[1625487456904,2.20527,2214.2,2214.1,2.20527]
[1625487457122,4.43907,2214.2,2213.8,2.20527]
[1625487458957,2.20527,2213.9,2213.8,2.20527]
[1625487459881,2.20527,2213.9,2212.6,14.1244]
[1625487460491,2.20527,2214.2,2212.6,14.1244]
[1625487460986,4.41054,2214.2,2213.8,2.20527]
[1625487462445,4.41054,2214.2,2212.7,1.0]
[1625487462540,4.41054,2214.2,2212.6,14.1244]
[1625487463042,2.20527,2213.5,2213.4,2.20527]
[1625487465075,7.88414,2213.5,2213.4,2.20527]
[1625487470216,5.67887,2213.5,2213.4,2.20527]
[1625487470317,2.20527,2213.5,2213.4,5.32167]
[1625487479739,2.20527,2213.5,2213.4,2.20527]
[1625487482193,7.20527,2213.5,2212.4,1.0]
[1625487482293,7.20527,2213.5,2212.1,1.32659432]
[1625487482702,39.3746,2212.9,2212.1,1.32659432]
[1625487482796,42.5008,2212.9,2211.8,1.32675407]
[1625487483096,42.5008,2212.9,2212.0,2.20527]
[1625487483201,5.07857,2212.2,2212.0,2.20527]
[1625487484321,5.07857,2212.2,2211.3,1.32711792]
[1625487484670,5.07857,2212.2,2210.9,1.3273906]
[1625487484772,10.07857,2212.2,2210.9,1.3273906]
[1625487485169,2.20527,2211.5,2211.4,2.20527]
[1625487485272,5.65197,2211.5,2210.9,1.3273906]
[1625487485624,5.65197,2211.5,2210.8,1.32747417]
[1625487485986,48.1052,2211.4,2210.8,1.32747417]
[1625487486174,48.1052,2211.4,2210.5,14.8649]
[1625487487126,4.41054,2210.6,2210.5,14.8649]
[1625487487227,7.89074,2210.6,2210.4,2.20527]
[1625487489034,3.4802,2210.6,2210.4,2.20527]
[1625487489132,48.1052,2211.4,2210.4,2.20527]
[1625487489232,2.20527,2211.0,2210.4,2.20527]
[1625487489739,2.20527,2211.2,2210.4,2.20527]
[1625487489936,1.0,2212.0,2210.4,2.20527]
[1625487490042,40.2905,2212.9,2210.4,2.20527]
[1625487490138,40.2905,2212.9,2210.6,1.32604395]
[1625487490490,1.0,2212.8,2210.7,1.32598122]
[1625487490890,5.905,2212.7,2210.7,1.32598122]
[1625487490991,1.0,2212.6,2210.6,1.32567667]
[1625487491197,2.20527,2211.6,2211.5,2.20527]
[1625487491540,5.0,2212.6,2211.5,2.20527]
[1625487491743,0.905,2212.7,2211.5,2.20527]
[1625487491843,42.6201,2212.9,2211.5,2.20527]
[1625487491942,5.0,2212.8,2211.5,2.20527]
[1625487492042,42.6201,2212.9,2211.5,2.20527]
[1625487493097,5.0,2212.8,2211.5,2.20527]
[1625487493196,2.20527,2212.0,2211.8,2.20527]
[1625487495250,4.41054,2212.0,2211.8,2.20527]
[1625487495551,4.41054,2212.0,2211.5,2.20527]
[1625487497154,2.20527,2211.6,2211.5,2.20527]
[1625487502090,4.66107,2211.6,2211.5,2.20527]
[1625487502289,45.30137,2211.6,2211.5,2.20527]
[1625487503995,50.30137,2211.6,2211.3,2.20527]
[1625487504093,50.30137,2211.6,2210.4,13.7206]
[1625487504094,50.30137,2211.6,2210.4,14.7206]
[1625487504195,50.30137,2211.6,2210.4,13.7206]
[1625487505253,2.20527,2210.5,2210.4,15.92587]
[1625487505351,2.20527,2210.5,2210.4,2.20527]
[1625487505651,2.20527,2210.5,2210.1,3.53131396]
[1625487506051,2.20527,2210.5,2210.1,2.20527]
[1625487507206,2.20527,2210.5,2210.1,4.41054]
[1625487507303,5.00137,2210.2,2210.1,4.41054]
[1625487507504,5.00137,2210.2,2210.1,2.20527]
[1625487508607,2.7961,2210.2,2210.1,2.20527]
[1625487508706,2.20527,2210.5,2210.1,2.20527]
[1625487509008,1.0,2211.5,2210.1,2.20527]
[1625487509108,43.0961,2211.6,2210.1,2.20527]
[1625487509208,5.0,2211.5,2210.1,2.20527]
[1625487509322,43.0961,2211.6,2210.1,2.20527]
[1625487509323,2.20527,2210.9,2210.7,2.20527]
[1625487511314,4.41054,2210.9,2210.7,2.20527]
[1625487511413,0.8948,2211.9,2210.7,2.20527]
[1625487511513,3.1187,2213.1,2210.7,2.20527]
[1625487511616,41.2905,2212.9,2210.7,4.94927]
[1625487511715,40.2905,2212.9,2210.7,5.94927]
[1625487512518,5.0,2212.8,2210.7,5.94927]
[1625487513079,40.2905,2212.9,2210.7,5.94927]
[1625487513280,2.20527,2211.8,2211.6,2.20527]
[1625487517342,3.10507,2211.8,2211.6,2.20527]
[1625487517841,2.20527,2211.8,2211.6,2.20527]
[1625487518493,5.0,2211.7,2210.7,53.7718]
[1625487518694,5.0,2211.7,2210.3,14.9514]
[1625487519095,5.0,2211.7,2210.2,14.8535]
[1625487519255,52.5317,2211.5,2210.2,14.8535]
[1625487519347,2.20527,2210.7,2210.6,2.20527]
[1625487521319,4.41054,2210.7,2210.6,2.20527]
[1625487521630,52.5317,2211.5,2210.6,2.20527]
[1625487521730,52.5317,2211.5,2210.6,4.97287]
[1625487523387,2.20527,2211.4,2211.2,2.20527]
[1625487525337,2.20527,2211.3,2211.2,2.20527]
[1625487525687,15.166,2212.5,2211.2,2.20527]
[1625487525790,14.166,2212.5,2211.2,4.90227]
[1625487526539,19.166,2212.5,2211.2,4.90227]
[1625487526990,14.166,2212.5,2211.2,4.90227]
[1625487527341,2.20527,2211.9,2211.8,2.20527]
[1625487529346,4.41054,2211.9,2211.8,2.20527]
[1625487529648,4.41054,2211.9,2211.2,2.20527]
[1625487529748,7.27644,2211.9,2211.2,2.20527]
[1625487530201,7.27644,2211.9,2210.4,1.0]
[1625487530299,7.27644,2211.9,2210.3,16.04886497]
[1625487530950,12.27644,2211.9,2210.3,16.04886497]
[1625487531054,13.17234,2211.9,2210.3,16.04886497]
[1625487531202,13.17234,2211.9,2210.3,14.7244]
[1625487531402,2.20527,2211.3,2211.2,2.20527]
[1625487533408,4.41054,2211.3,2211.2,2.20527]
[1625487533761,9.41054,2211.3,2211.2,2.20527]
[1625487533865,9.41054,2211.3,2211.2,1.04527]
[1625487534059,10.30684,2211.3,2211.0,2.20527]
[1625487534261,10.30684,2211.3,2210.2,14.8535]
[1625487535379,4.41054,2210.3,2210.2,17.05877]
[1625487535481,4.41054,2210.3,2210.2,2.20527]
[1625487538047,5.8963,2211.3,2210.2,2.20527]
[1625487539400,2.20527,2210.3,2210.2,2.20527]
[1625487540655,2.20527,2210.3,2209.6,1.32507074]
[1625487541457,2.20527,2210.3,2209.9,2.20527]
[1625487542159,2.20527,2210.3,2209.6,1.32507074]
[1625487542259,5.19307,2210.3,2209.6,1.32507074]
[1625487542560,5.19307,2210.3,2209.3,1.32537597]
[1625487542659,53.5369,2210.2,2209.3,1.32537597]
[1625487543161,53.5369,2210.2,2209.2,1.32540523]
[1625487543463,2.20527,2209.4,2209.3,2.20527]
[1625487543964,1.13356071,2209.4,2209.3,2.20527]
[1625487544061,1.13356071,2209.4,2209.3,2.41072767]
[1625487544812,1.13356071,2209.4,2209.3,2.20527]
[1625487546263,3.59466071,2209.4,2209.3,2.20527]
[1625487547414,3.59466071,2209.4,2208.7,13.6641]
[1625487547518,2.20527,2208.8,2208.7,2.20527]
[1625487547619,2.4611,2209.4,2208.7,2.20527]
[1625487547919,1.0,2210.7,2208.7,2.20527]
[1625487548020,7.75920455,2213.2,2208.7,2.20527]
[1625487548021,51.0048,2211.8,2208.9,1.32546763]
[1625487548220,51.0048,2211.8,2208.9,46.64786763]
[1625487548519,51.0048,2211.8,2208.9,63.12393663]
[1625487548632,51.0048,2211.8,2209.0,1.32530912]
[1625487548718,19.9872,2211.2,2209.0,1.32530912]
[1625487548818,1.0,2211.1,2209.0,1.32530912]
[1625487549132,19.9872,2211.2,2209.0,2.32530912]
[1625487549471,19.9872,2211.2,2210.4,2.20527]
[1625487549570,4.45797,2210.7,2210.4,2.20527]
[1625487550419,4.45797,2210.7,2210.2,2.20527]
[1625487551523,6.66324,2210.7,2210.2,4.41054]
[1625487552444,54.87104,2210.7,2210.2,4.41054]
[1625487552776,54.87104,2210.7,2209.2,1.0]
[1625487552876,59.87104,2210.7,2209.1,1.32547384]
[1625487553079,59.87104,2210.7,2208.9,1.32533898]
[1625487553578,5.25437,2210.0,2209.7,2.20527]
[1625487554288,3.0491,2210.0,2209.7,2.20527]
[1625487554796,48.2078,2210.7,2209.7,2.20527]
[1625487555547,2.20527,2210.5,2210.4,2.20527]
[1625487555645,5.72857,2210.5,2210.4,2.20527]
[1625487557549,7.93384,2210.5,2210.4,2.20527]
[1625487563167,7.93384,2210.5,2210.2,2.20527]
[1625487565928,7.93384,2210.5,2209.9,2.20527]
[1625487566027,7.93384,2210.5,2209.0,1.32707283]
[1625487566230,7.93384,2210.5,2208.9,1.32778538]
[1625487567697,7.93384,2210.5,2210.1,2.20527]
[1625487568897,7.93384,2210.5,2209.0,1.0]
[1625487568999,7.93384,2210.5,2208.9,1.32853778]
[1625487569698,2.20527,2210.2,2210.0,2.20527]
[1625487571709,2.20527,2210.1,2210.0,2.20527]
[1625487572913,2.20527,2210.2,2210.0,2.20527]
[1625487573719,2.20527,2210.2,2210.1,2.20527]
[1625487581652,49.1139,2210.7,2210.1,2.20527]
[1625487581752,2.20527,2210.2,2210.1,2.20527]
[1625487583005,2.20527,2210.4,2210.1,2.20527]